[Event "Titled Tuesday Blitz August 08 Early 2023"]
[White "Ncatt"]
[Black "Hnydiuk, Aleksander"]
[BlackFideId "1109057"]
[WhiteElo "2329"]
[BlackElo "2502"]
[Result "1-0"]
[Round "5"]
[TimeControl "180+1"]
[Date "2023.08.08"]
[WhiteClock "0:00:15"]
[BlackClock "0:00:09"]
[Board "172"]

1. e4 {[%clk 0:03:00]}  e5 {[%clk 0:02:57]} 2. Nf3 {[%clk 0:03:01]}  Nc6 {[%clk 0:02:57]} 3. Bc4 {[%clk 0:03:00]}  Bc5 {[%clk 0:02:56]} 4. O-O {[%clk 0:03:01]}  Nf6 {[%clk 0:02:56]} 5. d4 {[%clk 0:03:01]}  Nxd4 {[%clk 0:02:52]} 6. Nxe5 {[%clk 0:03:01]}  O-O {[%clk 0:02:52]} 7. Be3 {[%clk 0:03:01]}  d5 {[%clk 0:02:08]} 8. exd5 {[%clk 0:02:34]}  b5 {[%clk 0:01:57]} 9. Bxd4 {[%clk 0:02:31]}  Bxd4 {[%clk 0:01:55]} 10. Qxd4 {[%clk 0:02:29]}  bxc4 {[%clk 0:01:55]} 11. Nc3 {[%clk 0:02:23]}  Bb7 {[%clk 0:01:52]} 12. Rad1 {[%clk 0:02:13]}  Re8 {[%clk 0:01:46]} 13. Nxc4 {[%clk 0:02:02]}  Qe7 {[%clk 0:01:46]} 14. h3 {[%clk 0:01:54]}  Rad8 {[%clk 0:01:41]} 15. Qxa7 {[%clk 0:01:49]}  Bxd5 {[%clk 0:01:38]} 16. Ne3 {[%clk 0:01:42]}  Ba8 {[%clk 0:01:32]} 17. Rxd8 {[%clk 0:01:33]}  Rxd8 {[%clk 0:01:33]} 18. Rd1 {[%clk 0:01:32]}  Re8 {[%clk 0:01:33]} 19. Qd4 {[%clk 0:01:12]}  h6 {[%clk 0:01:30]} 20. Nf5 {[%clk 0:01:04]}  Qe6 {[%clk 0:01:25]} 21. Ne3 {[%clk 0:00:59]}  Qa6 {[%clk 0:01:06]} 22. Qc4 {[%clk 0:00:54]}  Qb7 {[%clk 0:01:03]} 23. Qb5 {[%clk 0:00:54]}  Qa7 {[%clk 0:00:57]} 24. a4 {[%clk 0:00:46]}  Rxe3 {[%clk 0:00:45]} 25. fxe3 {[%clk 0:00:44]}  Qxe3+ {[%clk 0:00:44]} 26. Kf1 {[%clk 0:00:34]}  Qf4+ {[%clk 0:00:40]} 27. Kg1 {[%clk 0:00:31]}  Qe3+ {[%clk 0:00:37]} 28. Kh2 {[%clk 0:00:30]}  Qf4+ {[%clk 0:00:35]} 29. Kh1 {[%clk 0:00:27]}  Kh7 {[%clk 0:00:31]} 30. Rf1 {[%clk 0:00:23]}  Qg3 {[%clk 0:00:26]} 31. Qf5+ {[%clk 0:00:22]}  g6 {[%clk 0:00:25]} 32. Qf2 {[%clk 0:00:19]}  Qxh3+ {[%clk 0:00:25]} 33. Kg1 {[%clk 0:00:20]}  Qg4 {[%clk 0:00:24]} 34. g3 {[%clk 0:00:19]}  Qh3 {[%clk 0:00:22]} 35. Qh2 {[%clk 0:00:16]}  Qe6 {[%clk 0:00:22]} 36. Nd1 {[%clk 0:00:15]}  Kg7 {[%clk 0:00:21]} 37. Qf2 {[%clk 0:00:15]}  Ng4 {[%clk 0:00:20]} 38. Qd4+ {[%clk 0:00:15]}  Kh7 {[%clk 0:00:20]} 39. Nf2 {[%clk 0:00:15]}  Qc6 {[%clk 0:00:17]} 40. Qe4 {[%clk 0:00:13]}  Qxe4 {[%clk 0:00:17]} 41. Nxe4 {[%clk 0:00:13]}  Bxe4 {[%clk 0:00:17]} 42. Rxf7+ {[%clk 0:00:14]}  Kg8 {[%clk 0:00:17]} 43. Rxc7 {[%clk 0:00:15]}  Ne5 {[%clk 0:00:17]} 44. a5 {[%clk 0:00:15]}  Nf3+ {[%clk 0:00:16]} 45. Kf2 {[%clk 0:00:15]}  Kf8 {[%clk 0:00:16]} 46. Ke3 {[%clk 0:00:15]}  Bd5 {[%clk 0:00:15]} 47. a6 {[%clk 0:00:16]}  Ne5 {[%clk 0:00:09]} 48. Kd4 {[%clk 0:00:15]} 1-0


[Site "https://www.chess.com"]

[Event "Titled Tuesday Blitz August 08 Early 2023"]
[White "Vasques, Antonio Pedro Freixial"]
[Black "NicolaiMaxime"]
[WhiteFideId "1908332"]
[WhiteElo "2323"]
[BlackElo "2491"]
[Result "0-1"]
[Round "5"]
[TimeControl "180+1"]
[Date "2023.08.08"]
[WhiteClock "0:00:06"]
[BlackClock "0:01:29"]
[Board "173"]

1. Nf3 {[%clk 0:02:56]}  Nf6 {[%clk 0:02:58]} 2. g3 {[%clk 0:02:53]}  g6 {[%clk 0:02:56]} 3. Bg2 {[%clk 0:02:52]}  Bg7 {[%clk 0:02:57]} 4. O-O {[%clk 0:02:50]}  O-O {[%clk 0:02:53]} 5. d4 {[%clk 0:02:44]}  d6 {[%clk 0:02:52]} 6. c4 {[%clk 0:02:44]}  Nc6 {[%clk 0:02:49]} 7. Nc3 {[%clk 0:02:39]}  e5 {[%clk 0:02:42]} 8. d5 {[%clk 0:02:34]}  Ne7 {[%clk 0:02:34]} 9. e4 {[%clk 0:02:26]}  a5 {[%clk 0:02:34]} 10. h3 {[%clk 0:02:23]}  h6 {[%clk 0:02:33]} 11. Be3 {[%clk 0:02:21]}  b6 {[%clk 0:02:30]} 12. Ne1 {[%clk 0:02:15]}  Nd7 {[%clk 0:02:28]} 13. Nd3 {[%clk 0:02:10]}  Nc5 {[%clk 0:02:27]} 14. Rc1 {[%clk 0:01:54]}  Bd7 {[%clk 0:02:25]} 15. f4 {[%clk 0:01:51]}  exf4 {[%clk 0:02:23]} 16. Bxf4 {[%clk 0:01:49]}  g5 {[%clk 0:02:20]} 17. Be3 {[%clk 0:01:48]}  Ng6 {[%clk 0:02:20]} 18. b3 {[%clk 0:01:32]}  Ne5 {[%clk 0:02:17]} 19. Nxe5 {[%clk 0:01:10]}  Bxe5 {[%clk 0:02:17]} 20. Bd4 {[%clk 0:01:10]}  Qe7 {[%clk 0:02:15]} 21. Ne2 {[%clk 0:00:55]}  Rae8 {[%clk 0:02:10]} 22. Qc2 {[%clk 0:00:37]}  Nxe4 {[%clk 0:01:54]} 23. Qxe4 {[%clk 0:00:23]}  Bxd4+ {[%clk 0:01:53]} 24. Qxd4 {[%clk 0:00:23]}  Qxe2 {[%clk 0:01:53]} 25. Rf2 {[%clk 0:00:17]}  Qe3 {[%clk 0:01:50]} 26. Qa1 {[%clk 0:00:16]}  Qe5 {[%clk 0:01:49]} 27. Qb1 {[%clk 0:00:16]}  f5 {[%clk 0:01:48]} 28. Rcf1 {[%clk 0:00:15]}  Kg7 {[%clk 0:01:45]} 29. Kh2 {[%clk 0:00:14]}  h5 {[%clk 0:01:42]} 30. Qd1 {[%clk 0:00:14]}  h4 {[%clk 0:01:41]} 31. Kg1 {[%clk 0:00:14]}  hxg3 {[%clk 0:01:41]} 32. Rf3 {[%clk 0:00:14]}  f4 {[%clk 0:01:39]} 33. Qd2 {[%clk 0:00:11]}  Bf5 {[%clk 0:01:35]} 34. h4 {[%clk 0:00:10]}  Bg4 {[%clk 0:01:31]} 35. hxg5 {[%clk 0:00:06]}  Bxf3 {[%clk 0:01:30]} 36. Bxf3 {[%clk 0:00:06]}  Qe3+ {[%clk 0:01:29]} 37. Qxe3 {[%clk 0:00:06]} 0-1


[Site "https://www.chess.com"]

[Event "Titled Tuesday Blitz August 08 Early 2023"]
[White "Fernandez Hernandez, Gerardo"]
[Black "Nguyen Hong Nhung"]
[WhiteFideId "2207400"]
[BlackFideId "12412201"]
[WhiteElo "2243"]
[BlackElo "2485"]
[Result "1-0"]
[Round "5"]
[TimeControl "180+1"]
[Date "2023.08.08"]
[WhiteClock "0:00:08"]
[BlackClock "0:00:01"]
[Board "175"]

1. e4 {[%clk 0:03:00]}  c5 {[%clk 0:02:59]} 2. Nc3 {[%clk 0:03:00]}  Nc6 {[%clk 0:02:59]} 3. f4 {[%clk 0:03:00]}  a6 {[%clk 0:02:59]} 4. Nf3 {[%clk 0:02:56]}  e6 {[%clk 0:02:59]} 5. g3 {[%clk 0:02:41]}  d5 {[%clk 0:02:56]} 6. d3 {[%clk 0:02:37]}  Nf6 {[%clk 0:02:54]} 7. e5 {[%clk 0:02:32]}  Ng8 {[%clk 0:02:45]} 8. Bg2 {[%clk 0:02:31]}  Nge7 {[%clk 0:02:46]} 9. O-O {[%clk 0:02:30]}  h5 {[%clk 0:02:45]} 10. Bd2 {[%clk 0:02:12]}  Nf5 {[%clk 0:02:45]} 11. Rc1 {[%clk 0:01:48]}  Be7 {[%clk 0:02:42]} 12. Qe2 {[%clk 0:01:47]}  b5 {[%clk 0:02:37]} 13. Nd1 {[%clk 0:01:41]}  Bb7 {[%clk 0:01:45]} 14. c3 {[%clk 0:01:38]}  d4 {[%clk 0:01:45]} 15. c4 {[%clk 0:01:25]}  g6 {[%clk 0:01:20]} 16. Nf2 {[%clk 0:01:18]}  Rb8 {[%clk 0:01:05]} 17. Ne4 {[%clk 0:01:14]}  Na5 {[%clk 0:00:57]} 18. Qe1 {[%clk 0:00:53]}  Nc6 {[%clk 0:00:56]} 19. cxb5 {[%clk 0:00:49]}  axb5 {[%clk 0:00:54]} 20. Nxc5 {[%clk 0:00:49]}  Ba8 {[%clk 0:00:36]} 21. Ng5 {[%clk 0:00:41]}  Rc8 {[%clk 0:00:32]} 22. Nge4 {[%clk 0:00:32]}  Qb6 {[%clk 0:00:27]} 23. b4 {[%clk 0:00:24]}  Rd8 {[%clk 0:00:18]} 24. h3 {[%clk 0:00:20]}  O-O {[%clk 0:00:15]} 25. g4 {[%clk 0:00:18]}  hxg4 {[%clk 0:00:13]} 26. hxg4 {[%clk 0:00:19]}  Ng7 {[%clk 0:00:14]} 27. Nf6+ {[%clk 0:00:17]}  Bxf6 {[%clk 0:00:13]} 28. exf6 {[%clk 0:00:18]}  Ne8 {[%clk 0:00:14]} 29. g5 {[%clk 0:00:18]}  Nd6 {[%clk 0:00:09]} 30. Qh4 {[%clk 0:00:13]}  Nf5 {[%clk 0:00:09]} 31. Qh3 {[%clk 0:00:13]}  Nb8 {[%clk 0:00:08]} 32. Kf2 {[%clk 0:00:11]}  Bxg2 {[%clk 0:00:07]} 33. Qxg2 {[%clk 0:00:11]}  Qc6 {[%clk 0:00:07]} 34. Qh3 {[%clk 0:00:08]}  Rfe8 {[%clk 0:00:03]} 35. Rh1 {[%clk 0:00:08]}  Kf8 {[%clk 0:00:01]} 36. Qh8# {[%clk 0:00:08]} 1-0


[Site "https://www.chess.com"]

[Event "Titled Tuesday Blitz August 08 Early 2023"]
[White "Sariego Figueredo, Wilfredo"]
[Black "Khamdamova, Afruza"]
[WhiteFideId "3500080"]
[BlackFideId "14210444"]
[WhiteElo "2280"]
[BlackElo "2477"]
[Result "0-1"]
[Round "5"]
[TimeControl "180+1"]
[Date "2023.08.08"]
[WhiteClock "0:00:04"]
[BlackClock "0:00:05"]
[Board "176"]

1. d4 {[%clk 0:02:59]}  Nf6 {[%clk 0:03:00]} 2. Bf4 {[%clk 0:02:59]}  d5 {[%clk 0:03:00]} 3. e3 {[%clk 0:02:59]}  c5 {[%clk 0:03:00]} 4. c3 {[%clk 0:02:59]}  Nc6 {[%clk 0:02:59]} 5. Nd2 {[%clk 0:02:59]}  Bf5 {[%clk 0:02:44]} 6. Ngf3 {[%clk 0:02:58]}  e6 {[%clk 0:02:44]} 7. Nh4 {[%clk 0:02:56]}  Bg6 {[%clk 0:02:44]} 8. Nxg6 {[%clk 0:02:56]}  hxg6 {[%clk 0:02:44]} 9. Bd3 {[%clk 0:02:56]}  Bd6 {[%clk 0:02:43]} 10. Bxd6 {[%clk 0:02:52]}  Qxd6 {[%clk 0:02:43]} 11. Nf3 {[%clk 0:02:51]}  cxd4 {[%clk 0:02:41]} 12. exd4 {[%clk 0:02:49]}  a6 {[%clk 0:02:14]} 13. Qe2 {[%clk 0:02:48]}  O-O {[%clk 0:02:07]} 14. O-O {[%clk 0:02:47]}  Rac8 {[%clk 0:02:04]} 15. Rfe1 {[%clk 0:02:45]}  Rfe8 {[%clk 0:01:53]} 16. Ne5 {[%clk 0:02:43]}  Ne7 {[%clk 0:01:52]} 17. a4 {[%clk 0:02:21]}  a5 {[%clk 0:01:45]} 18. Bb5 {[%clk 0:02:20]}  Rf8 {[%clk 0:01:45]} 19. f3 {[%clk 0:02:09]}  Nc6 {[%clk 0:01:29]} 20. Nd3 {[%clk 0:02:06]}  Qc7 {[%clk 0:01:25]} 21. Nc5 {[%clk 0:02:06]}  Na7 {[%clk 0:01:20]} 22. Bd3 {[%clk 0:02:02]}  b6 {[%clk 0:01:17]} 23. Nb3 {[%clk 0:01:55]}  Rcd8 {[%clk 0:01:14]} 24. Nd2 {[%clk 0:01:49]}  Nc8 {[%clk 0:01:14]} 25. Nb1 {[%clk 0:01:43]}  Nd6 {[%clk 0:01:14]} 26. Na3 {[%clk 0:01:44]}  Nh5 {[%clk 0:01:08]} 27. Bb5 {[%clk 0:01:41]}  Qe7 {[%clk 0:01:07]} 28. Qe5 {[%clk 0:01:38]}  Nf6 {[%clk 0:00:58]} 29. Re2 {[%clk 0:01:20]}  Kh7 {[%clk 0:00:56]} 30. Rae1 {[%clk 0:01:19]}  Rh8 {[%clk 0:00:56]} 31. Bd3 {[%clk 0:01:14]}  Kg8 {[%clk 0:00:56]} 32. Nb5 {[%clk 0:01:14]}  Nxb5 {[%clk 0:00:55]} 33. Bxb5 {[%clk 0:01:14]}  Rh5 {[%clk 0:00:51]} 34. Qg3 {[%clk 0:01:12]}  Nh7 {[%clk 0:00:46]} 35. Re5 {[%clk 0:01:11]}  Rh6 {[%clk 0:00:31]} 36. R5e2 {[%clk 0:00:58]}  Qf6 {[%clk 0:00:31]} 37. Qc7 {[%clk 0:00:57]}  Rf8 {[%clk 0:00:29]} 38. Qg3 {[%clk 0:00:55]}  g5 {[%clk 0:00:28]} 39. Re5 {[%clk 0:00:54]}  Rc8 {[%clk 0:00:25]} 40. Bd7 {[%clk 0:00:53]}  Rd8 {[%clk 0:00:25]} 41. Bb5 {[%clk 0:00:51]}  Qg6 {[%clk 0:00:25]} 42. R5e2 {[%clk 0:00:47]}  Qh5 {[%clk 0:00:17]} 43. Qc7 {[%clk 0:00:40]}  Rf8 {[%clk 0:00:17]} 44. h3 {[%clk 0:00:35]}  Qh4 {[%clk 0:00:05]} 45. Qd6 {[%clk 0:00:31]}  Nf6 {[%clk 0:00:05]} 46. Bd3 {[%clk 0:00:26]}  Nh5 {[%clk 0:00:05]} 47. Rd2 {[%clk 0:00:09]}  Nf4 {[%clk 0:00:05]} 48. Bf1 {[%clk 0:00:09]}  Qg3 {[%clk 0:00:06]} 49. Kh1 {[%clk 0:00:07]}  g4 {[%clk 0:00:04]} 50. Qe5 {[%clk 0:00:06]}  gxh3 {[%clk 0:00:04]} 51. gxh3 {[%clk 0:00:06]}  Rxh3+ {[%clk 0:00:02]} 52. Bxh3 {[%clk 0:00:07]}  Qxh3+ {[%clk 0:00:03]} 53. Kg1 {[%clk 0:00:07]}  Qg3+ {[%clk 0:00:03]} 54. Kf1 {[%clk 0:00:08]}  Qxf3+ {[%clk 0:00:03]} 55. Rf2 {[%clk 0:00:08]}  Qh3+ {[%clk 0:00:04]} 56. Kg1 {[%clk 0:00:08]}  Nd3 {[%clk 0:00:04]} 57. Qe2 {[%clk 0:00:06]}  Nxe1 {[%clk 0:00:04]} 58. Qxe1 {[%clk 0:00:07]}  Qg4+ {[%clk 0:00:04]} 59. Rg2 {[%clk 0:00:07]}  Qf4 {[%clk 0:00:04]} 60. Qd1 {[%clk 0:00:05]}  g6 {[%clk 0:00:04]} 61. Qh5 {[%clk 0:00:05]}  Kg7 {[%clk 0:00:04]} 62. Qh3 {[%clk 0:00:02]}  Rh8 {[%clk 0:00:04]} 63. Qd3 {[%clk 0:00:02]}  Qc1+ {[%clk 0:00:04]} 64. Kf2 {[%clk 0:00:02]}  Rh1 {[%clk 0:00:04]} 65. Kf3 {[%clk 0:00:03]}  Rf1+ {[%clk 0:00:04]} 66. Kg3 {[%clk 0:00:03]}  Qf4+ {[%clk 0:00:04]} 67. Kh3 {[%clk 0:00:03]}  Rh1+ {[%clk 0:00:04]} 68. Rh2 {[%clk 0:00:04]}  Rxh2# {[%clk 0:00:05]} 0-1


[Site "https://www.chess.com"]

[Event "Titled Tuesday Blitz August 08 Early 2023"]
[White "Baches Garcia, Guillermo"]
[Black "Vaglio Munoz, Jaime"]
[WhiteFideId "2209764"]
[BlackFideId "6500145"]
[WhiteElo "2457"]
[BlackElo "2241"]
[Result "1-0"]
[Round "5"]
[TimeControl "180+1"]
[Date "2023.08.08"]
[WhiteClock "0:00:16"]
[BlackClock "0:00:00"]
[Board "177"]

1. e4 {[%clk 0:03:00]}  c5 {[%clk 0:02:58]} 2. Nf3 {[%clk 0:03:00]}  Qa5 {[%clk 0:02:58]} 3. g3 {[%clk 0:02:58]}  Nf6 {[%clk 0:02:56]} 4. Qe2 {[%clk 0:02:57]}  a6 {[%clk 0:02:46]} 5. Bg2 {[%clk 0:02:47]}  Nc6 {[%clk 0:02:45]} 6. b3 {[%clk 0:02:38]}  Nd4 {[%clk 0:02:41]} 7. Nxd4 {[%clk 0:02:35]}  cxd4 {[%clk 0:02:42]} 8. O-O {[%clk 0:02:25]}  e5 {[%clk 0:02:38]} 9. c3 {[%clk 0:02:21]}  dxc3 {[%clk 0:02:20]} 10. dxc3 {[%clk 0:02:15]}  b5 {[%clk 0:02:20]} 11. Bb2 {[%clk 0:02:11]}  Bb7 {[%clk 0:02:19]} 12. a4 {[%clk 0:02:05]}  b4 {[%clk 0:02:17]} 13. c4 {[%clk 0:02:02]}  d6 {[%clk 0:02:14]} 14. Nd2 {[%clk 0:01:57]}  Be7 {[%clk 0:02:12]} 15. f4 {[%clk 0:01:54]}  O-O {[%clk 0:02:10]} 16. f5 {[%clk 0:01:43]}  Nd7 {[%clk 0:02:08]} 17. h4 {[%clk 0:01:33]}  Nc5 {[%clk 0:02:04]} 18. f6 {[%clk 0:01:20]}  gxf6 {[%clk 0:01:52]} 19. Bh3 {[%clk 0:01:15]}  Kh8 {[%clk 0:01:51]} 20. Bf5 {[%clk 0:01:04]}  Rg8 {[%clk 0:01:50]} 21. Kh2 {[%clk 0:01:04]}  Bc8 {[%clk 0:01:47]} 22. Rf3 {[%clk 0:01:02]}  Bxf5 {[%clk 0:01:46]} 23. Rxf5 {[%clk 0:01:02]}  Rg6 {[%clk 0:01:43]} 24. Raf1 {[%clk 0:01:01]}  Rag8 {[%clk 0:01:42]} 25. R1f3 {[%clk 0:01:01]}  Bf8 {[%clk 0:01:28]} 26. Nf1 {[%clk 0:00:57]}  Bh6 {[%clk 0:01:27]} 27. Rxf6 {[%clk 0:00:54]}  Rxf6 {[%clk 0:01:14]} 28. Rxf6 {[%clk 0:00:54]}  Qc7 {[%clk 0:01:14]} 29. Rxh6 {[%clk 0:00:52]}  Qe7 {[%clk 0:01:09]} 30. Qh5 {[%clk 0:00:47]}  f6 {[%clk 0:01:06]} 31. Qf3 {[%clk 0:00:43]}  Kg7 {[%clk 0:01:02]} 32. Rh5 {[%clk 0:00:41]}  Qb7 {[%clk 0:00:49]} 33. Nd2 {[%clk 0:00:40]}  Rf8 {[%clk 0:00:48]} 34. Rf5 {[%clk 0:00:39]}  Rf7 {[%clk 0:00:37]} 35. g4 {[%clk 0:00:35]}  h6 {[%clk 0:00:36]} 36. g5 {[%clk 0:00:35]}  hxg5 {[%clk 0:00:35]} 37. hxg5 {[%clk 0:00:35]}  fxg5 {[%clk 0:00:25]} 38. Rxg5+ {[%clk 0:00:35]}  Kf8 {[%clk 0:00:24]} 39. Rf5 {[%clk 0:00:33]}  Rxf5 {[%clk 0:00:19]} 40. Qxf5+ {[%clk 0:00:33]}  Kg7 {[%clk 0:00:18]} 41. Kg3 {[%clk 0:00:29]}  Nd3 {[%clk 0:00:12]} 42. Ba1 {[%clk 0:00:23]}  Nf4 {[%clk 0:00:12]} 43. Qxf4 {[%clk 0:00:20]}  Qb6 {[%clk 0:00:02]} 44. Qg4+ {[%clk 0:00:17]}  Kf7 {[%clk 0:00:01]} 45. Qf3+ {[%clk 0:00:17]}  Ke8 {[%clk 0:00:00]} 46. Qf2 {[%clk 0:00:16]} 1-0


[Site "https://www.chess.com"]

[Event "Titled Tuesday Blitz August 08 Early 2023"]
[White "Karas, Marek"]
[Black "Samaganova, Aleksandra"]
[WhiteFideId "14928558"]
[BlackFideId "13800221"]
[WhiteElo "2443"]
[BlackElo "2240"]
[Result "1-0"]
[Round "5"]
[TimeControl "180+1"]
[Date "2023.08.08"]
[WhiteClock "0:01:37"]
[BlackClock "0:00:00"]
[Board "178"]

1. d4 {[%clk 0:02:58]}  Nf6 {[%clk 0:00:56]} 2. c4 {[%clk 0:02:55]}  e6 {[%clk 0:00:55]} 3. Nc3 {[%clk 0:02:54]}  Bb4 {[%clk 0:00:54]} 4. f3 {[%clk 0:02:53]}  c5 {[%clk 0:00:52]} 5. a3 {[%clk 0:02:53]}  Bxc3+ {[%clk 0:00:51]} 6. bxc3 {[%clk 0:02:54]}  cxd4 {[%clk 0:00:48]} 7. cxd4 {[%clk 0:02:54]}  d5 {[%clk 0:00:48]} 8. cxd5 {[%clk 0:02:48]}  exd5 {[%clk 0:00:47]} 9. Bg5 {[%clk 0:02:47]}  O-O {[%clk 0:00:46]} 10. e3 {[%clk 0:02:45]}  Re8 {[%clk 0:00:44]} 11. Bd3 {[%clk 0:02:42]}  h6 {[%clk 0:00:44]} 12. Bxf6 {[%clk 0:02:36]}  Qxf6 {[%clk 0:00:44]} 13. Kf2 {[%clk 0:02:37]}  Nc6 {[%clk 0:00:41]} 14. Ne2 {[%clk 0:02:35]}  Bf5 {[%clk 0:00:38]} 15. Ng3 {[%clk 0:02:28]}  Bxd3 {[%clk 0:00:35]} 16. Qxd3 {[%clk 0:02:29]}  Re6 {[%clk 0:00:30]} 17. Rhe1 {[%clk 0:02:20]}  Rae8 {[%clk 0:00:30]} 18. Rad1 {[%clk 0:02:19]}  Qe7 {[%clk 0:00:27]} 19. e4 {[%clk 0:02:18]}  Qg5 {[%clk 0:00:21]} 20. e5 {[%clk 0:02:07]}  Qd8 {[%clk 0:00:20]} 21. f4 {[%clk 0:02:07]}  Rg6 {[%clk 0:00:10]} 22. Nf5 {[%clk 0:01:56]}  Qb6 {[%clk 0:00:10]} 23. Rb1 {[%clk 0:01:52]}  Qa5 {[%clk 0:00:06]} 24. Rb5 {[%clk 0:01:49]}  Qa4 {[%clk 0:00:05]} 25. Rxd5 {[%clk 0:01:42]}  Kh7 {[%clk 0:00:00]} 26. Nh4 {[%clk 0:01:37]} 1-0


[Site "https://www.chess.com"]

[Event "Titled Tuesday Blitz August 08 Early 2023"]
[White "Rietze, Clemens, Dr."]
[Black "Mitrovic, Darko R"]
[WhiteFideId "24620351"]
[BlackFideId "927023"]
[WhiteElo "2442"]
[BlackElo "2145"]
[Result "1-0"]
[Round "5"]
[TimeControl "180+1"]
[Date "2023.08.08"]
[WhiteClock "0:00:06"]
[BlackClock "0:00:00"]
[Board "179"]

1. d4 {[%clk 0:03:00]}  e6 {[%clk 0:02:59]} 2. c4 {[%clk 0:03:00]}  Nf6 {[%clk 0:02:59]} 3. Nf3 {[%clk 0:03:01]}  Bb4+ {[%clk 0:02:59]} 4. Bd2 {[%clk 0:03:01]}  Bxd2+ {[%clk 0:02:59]} 5. Qxd2 {[%clk 0:03:01]}  d6 {[%clk 0:02:59]} 6. Nc3 {[%clk 0:03:01]}  Nc6 {[%clk 0:02:58]} 7. e4 {[%clk 0:03:01]}  O-O {[%clk 0:02:55]} 8. Be2 {[%clk 0:02:57]}  e5 {[%clk 0:02:55]} 9. d5 {[%clk 0:02:57]}  Ne7 {[%clk 0:02:54]} 10. O-O {[%clk 0:02:42]}  b6 {[%clk 0:02:52]} 11. Ne1 {[%clk 0:02:40]}  Ng6 {[%clk 0:02:48]} 12. Nd3 {[%clk 0:02:39]}  h6 {[%clk 0:02:27]} 13. b4 {[%clk 0:02:21]}  a5 {[%clk 0:02:27]} 14. a3 {[%clk 0:02:21]}  Nh7 {[%clk 0:02:15]} 15. Rac1 {[%clk 0:02:15]}  axb4 {[%clk 0:02:14]} 16. axb4 {[%clk 0:02:15]}  f5 {[%clk 0:02:10]} 17. c5 {[%clk 0:01:27]}  bxc5 {[%clk 0:02:09]} 18. bxc5 {[%clk 0:01:27]}  Ng5 {[%clk 0:02:06]} 19. exf5 {[%clk 0:01:21]}  Bxf5 {[%clk 0:02:03]} 20. Nb4 {[%clk 0:01:06]}  Nf4 {[%clk 0:01:31]} 21. f3 {[%clk 0:00:40]}  Qf6 {[%clk 0:00:55]} 22. Kh1 {[%clk 0:00:35]}  Qg6 {[%clk 0:00:52]} 23. Rg1 {[%clk 0:00:30]}  Rae8 {[%clk 0:00:27]} 24. Nb5 {[%clk 0:00:20]}  Rf7 {[%clk 0:00:18]} 25. cxd6 {[%clk 0:00:18]}  cxd6 {[%clk 0:00:18]} 26. Rc6 {[%clk 0:00:18]}  Rd7 {[%clk 0:00:14]} 27. Bc4 {[%clk 0:00:15]}  Nf7 {[%clk 0:00:10]} 28. Na6 {[%clk 0:00:13]}  Qh5 {[%clk 0:00:07]} 29. Nac7 {[%clk 0:00:10]}  Rc8 {[%clk 0:00:03]} 30. Na6 {[%clk 0:00:08]}  Rcd8 {[%clk 0:00:03]} 31. Rc7 {[%clk 0:00:07]}  Qg5 {[%clk 0:00:02]} 32. Rxd7 {[%clk 0:00:07]}  Rxd7 {[%clk 0:00:03]} 33. Nac7 {[%clk 0:00:07]}  Nh3 {[%clk 0:00:03]} 34. Qe2 {[%clk 0:00:06]}  Nf4 {[%clk 0:00:01]} 35. Qf2 {[%clk 0:00:05]}  Qh5 {[%clk 0:00:00]} 36. Ne6 {[%clk 0:00:06]} 1-0


[Site "https://www.chess.com"]

[Event "Titled Tuesday Blitz August 08 Early 2023"]
[White "Shapiro, Daniel"]
[Black "Haukenfrers, Dale"]
[WhiteFideId "2001780"]
[BlackFideId "2603780"]
[WhiteElo "2367"]
[BlackElo "2125"]
[Result "0-1"]
[Round "5"]
[TimeControl "180+1"]
[Date "2023.08.08"]
[WhiteClock "0:00:00"]
[BlackClock "0:00:30"]
[Board "180"]

1. d4 {[%clk 0:03:00]}  d6 {[%clk 0:02:55]} 2. e4 {[%clk 0:02:57]}  g6 {[%clk 0:02:55]} 3. Nc3 {[%clk 0:02:55]}  c6 {[%clk 0:02:55]} 4. a4 {[%clk 0:02:54]}  Nf6 {[%clk 0:02:52]} 5. h3 {[%clk 0:02:54]}  Nbd7 {[%clk 0:02:51]} 6. Nge2 {[%clk 0:02:54]}  e5 {[%clk 0:02:51]} 7. Be3 {[%clk 0:02:53]}  Qc7 {[%clk 0:02:48]} 8. g4 {[%clk 0:02:53]}  Nb6 {[%clk 0:02:45]} 9. b3 {[%clk 0:02:50]}  Nfd7 {[%clk 0:02:39]} 10. Bg2 {[%clk 0:02:48]}  a5 {[%clk 0:02:37]} 11. O-O {[%clk 0:02:47]}  h5 {[%clk 0:02:37]} 12. g5 {[%clk 0:02:42]}  h4 {[%clk 0:02:37]} 13. f4 {[%clk 0:02:41]}  exf4 {[%clk 0:02:37]} 14. Bxf4 {[%clk 0:02:40]}  Bg7 {[%clk 0:02:31]} 15. Qe1 {[%clk 0:02:28]}  Nf8 {[%clk 0:02:30]} 16. Qf2 {[%clk 0:02:17]}  Ne6 {[%clk 0:02:30]} 17. Be3 {[%clk 0:02:17]}  Nd8 {[%clk 0:02:14]} 18. Rad1 {[%clk 0:02:09]}  Nd7 {[%clk 0:02:13]} 19. Kh1 {[%clk 0:02:00]}  Nf8 {[%clk 0:02:10]} 20. Ng1 {[%clk 0:01:58]}  Ra6 {[%clk 0:02:09]} 21. Nf3 {[%clk 0:01:58]}  Rb6 {[%clk 0:02:05]} 22. d5 {[%clk 0:01:38]}  c5 {[%clk 0:02:04]} 23. Nb5 {[%clk 0:01:31]}  Rxb5 {[%clk 0:02:00]} 24. axb5 {[%clk 0:01:30]}  Bd7 {[%clk 0:01:54]} 25. c4 {[%clk 0:01:29]}  Qc8 {[%clk 0:01:53]} 26. Kh2 {[%clk 0:01:28]}  Rh5 {[%clk 0:01:50]} 27. Bf4 {[%clk 0:01:27]}  Nh7 {[%clk 0:01:44]} 28. Rde1 {[%clk 0:01:20]}  Kf8 {[%clk 0:01:40]} 29. e5 {[%clk 0:01:18]}  dxe5 {[%clk 0:01:38]} 30. Bxe5 {[%clk 0:01:16]}  Kg8 {[%clk 0:01:35]} 31. Qb2 {[%clk 0:01:08]}  Bf8 {[%clk 0:01:27]} 32. Qd2 {[%clk 0:00:50]}  b6 {[%clk 0:01:26]} 33. Qf4 {[%clk 0:00:49]}  Bf5 {[%clk 0:01:21]} 34. Nd2 {[%clk 0:00:32]}  Qd7 {[%clk 0:01:20]} 35. Ne4 {[%clk 0:00:31]}  Nb7 {[%clk 0:01:17]} 36. Bf3 {[%clk 0:00:26]}  Bxe4 {[%clk 0:01:13]} 37. Bxh5 {[%clk 0:00:23]}  Bf5 {[%clk 0:01:01]} 38. Bg4 {[%clk 0:00:22]}  Bxg4 {[%clk 0:01:02]} 39. hxg4 {[%clk 0:00:19]}  Nd6 {[%clk 0:01:00]} 40. Rh1 {[%clk 0:00:19]}  Qd8 {[%clk 0:00:51]} 41. Bf6 {[%clk 0:00:17]}  Qd7 {[%clk 0:00:47]} 42. Kg2 {[%clk 0:00:16]}  Ne8 {[%clk 0:00:41]} 43. Rxh4 {[%clk 0:00:14]}  Nexf6 {[%clk 0:00:39]} 44. Reh1 {[%clk 0:00:07]}  Bd6 {[%clk 0:00:32]} 45. Qe3 {[%clk 0:00:00]}  Nxg4 {[%clk 0:00:30]} 0-1


[Site "https://www.chess.com"]